Cogmind - Beta 15 @@@ ROGUE MODE // 2025.05.25 @ 22:30:09 Player: Peawet Result: Destroyed by H-66 Slayer with Gauss Rifle Performance ------------- Evolutions (3) 1500 Regions Visited (9) 1800 Robots Destroyed (0) 0 Value Destroyed (0) 0 Prototype IDs (12) 240 Alien Tech Used (0) 0 Bonus (1183) 1183 TOTAL SCORE: 4723 Bonus ------- Pacifist 834 Follower Combat Kills 49 Met Data Miner 300 Cogmind --------- Core Integrity 0/700 Matter 295/300 Energy 98/100 System Corruption 0% Temperature Cool (0) Movement Core (50) Location -6/Proximity Caves Parts ------- > --- POWER (1) -------- (None) > --- PROPULSION (5) --- (None) > --- UTILITY (5) ------ Makeshift Terrain Scan Processor > --- WEAPON (2) ------- (None) > --- INVENTORY (5) ---- Remote Datajack Peak State ------------ > --- POWER ------------ (None) > --- PROPULSION ------- Airjet > --- UTILITY ---------- Makeshift Terrain Scan Processor Transmission Jammer > --- WEAPON ----------- (None) > --- INVENTORY -------- Remote Datajack [Rating: 11] Favorites ----------- Power None Propulsion Aerolev Unit Hover Unit Aerolev Unit Utility Makeshift Terrain Scan Processor Device Transmission Jammer Processor Makeshift Terrain Scan Processor Weapon Mining Laser Special Weapon Mining Laser Build | -11 -10 -10 -9 -8 -7 -7 -7 -7 -6 ------- Run | Yrd Mat Min Mat Mat Fac Low Low Dat Pro Slots Evolved 6 | . . . 2 2 2 . . . . Power . | . . . . . . . . . . Propulsion 3 | . . . . 2 1 . . . . Utility 3 | . . . 2 . 1 . . . . Weapon . | . . . . . . . . . . Parts Attached 8 | . 1 . 2 1 1 1 2 . . Power . | . . . . . . . . . . Engine . | . . . . . . . . . . Core . | . . . . . . . . . . Reactor . | . . . . . . . . . . Propulsion 3 | . . . 2 . . . 1 . . Treads . | . . . . . . . . . . Leg . | . . . . . . . . . . Wheel . | . . . . . . . . . . Hover 3 | . . . 2 . . . 1 . . Flight . | . . . . . . . . . . Utility 3 | . . . . 1 . 1 1 . . Device 1 | . . . . . . . 1 . . Storage . | . . . . . . . . . . Processor 2 | . . . . 1 . 1 . . . Hackware . | . . . . . . . . . . Protection . | . . . . . . . . . . Artifact . | . . . . . . . . . . Weapon 2 | . 1 . . . 1 . . . . Energy Gun . | . . . . . . . . . . Energy Cannon . | . . . . . . . . . . Ballistic Gun . | . . . . . . . . . . Ballistic Cannon . | . . . . . . . . . . Launcher . | . . . . . . . . . . Special Weapon 2 | . 1 . . . 1 . . . . Impact Weapon . | . . . . . . . . . . Slashing Weapon . | . . . . . . . . . . Piercing Weapon . | . . . . . . . . . . Special Melee Weapon . | . . . . . . . . . . Unidentified Prototypes 1 | . . . 1 . . . . . . Parts Lost 3 | . . . 1 1 . . . . 1 Power . | . . . . . . . . . . Propulsion . | . . . . . . . . . . Utility 2 | . . . . 1 . . . . 1 Weapon 1 | . . . 1 . . . . . . Highest Loss Streak 1 | . . . 1 1 . . . . 1 To Critical Strikes . | . . . . . . . . . . Average Backups . | . . . . . . 1 1 1 1 Power . | . . . . . . . . . . Propulsion . | . . . . . . . . . . Utility . | . . . . . . . . . . Weapon . | . . . . . . . . . . Tool/Special . | . . . . . . . . . . Unused Backups . | . . . . . . . . . . Power . | . . . . . . . . . . Propulsion . | . . . . . . . . . . Utility . | . . . . . . . . . . Weapon . | . . . . . . . . . . Tool/Special . | . . . . . . . . . . Average Slot Usage (%) 7 | . . 14 4 5 . 6 10 15 12 Device 1 | . . . . . . . 3 7 4 Processor 4 | . . . . 5 . 6 7 7 7 Peak Build Rating 11 | . 1 1 8 3 4 4 11 8 8 Average Rating 3 | . . 1 . 1 . 3 5 8 6 On Entrance 2 | . . 1 1 . . . 4 8 8 Naked Turns 433 | . 103 . 124 54 129 23 . . . Heaviest Build 3 | . 1 1 1 . 3 . 1 1 1 Greatest Support 8 | 3 3 3 8 3 3 3 3 3 3 Greatest Overweight (x) . | . . . . . . . . . . Average Overweight (x) . | . . . . . . . . . . Largest Inventory Capacity 5 | 5 5 5 5 5 5 5 5 5 5 Average Capacity 5 | 5 5 5 5 5 5 5 5 5 5 Most Carried 1 | . . . . . 1 1 1 1 1 Average Carried . | . . . . . . 1 1 1 1 Final Capacity 5 | 5 5 5 5 5 5 5 5 5 5 Final Carried 1 | . . . . . 1 1 1 1 1 Class Distribution -------------------- 100% | Mutant Dominant Class ---------------- Mutant | -10/Materials Mutant | -10/Mines Mutant | -9/Materials Mutant | -8/Materials Mutant | -7/Factory Mutant | -7/Lower Caves Mutant | -7/Lower Caves Mutant | -7/Data Miner Mutant | -6/Proximity Caves Resources | -11 -10 -10 -9 -8 -7 -7 -7 -7 -6 ----------- Run | Yrd Mat Min Mat Mat Fac Low Low Dat Pro Matter Collected 256 | 200 . 10 . . . 36 10 . . Remotely . | . . . . . . . . . . Salvage Created . | . . . . . . . . . . Parts . | . . . . . . . . . . Haulers Intercepted . | . . . . . . . . . . Recyclers Shooed . | . . . . . . . . . . Parts Field Recycled . | . . . . . . . . . . Retrieved Matter . | . . . . . . . . . . Parts Self-Destructed 13 | . . . . . . 3 7 . 3 Prevented 3 | . . . . . . . 3 . . Kills | -11 -10 -10 -9 -8 -7 -7 -7 -7 -6 ------- Run | Yrd Mat Min Mat Mat Fac Low Low Dat Pro Combat Hostiles Destroyed . | . . . . . . . . . . Classes Destroyed . | . . . . . . . . . . Best Kill Streak . | . . . . . . . . . . Combat Bots Only . | . . . . . . . . . . Max Kills in Single Turn . | . . . . . . . . . . Gunslinging . | . . . . . . . . . . Exploded . | . . . . . . . . . . Melee . | . . . . . . . . . . Uniques/NPCs Destroyed . | . . . . . . . . . . Combat | -11 -10 -10 -9 -8 -7 -7 -7 -7 -6 -------- Run | Yrd Mat Min Mat Mat Fac Low Low Dat Pro Hostile Shots Fired 220 | . 5 . 28 78 24 18 39 . 28 Missed 103 | . 2 . 10 39 11 7 21 . 13 Hits 117 | . 3 . 18 39 13 11 18 . 15 Melee 4 | . . . . 4 . . . . . Projectile 113 | . 3 . 18 35 13 11 18 . 15 AOE 3 | . . . . 3 . . . . . Critical Strikes 3 | . . . 1 2 . . . . . Damage Taken 1528 | . 41 . 251 506 104 149 263 . 214 Core 1442 | . 41 . 207 484 104 149 263 . 194 Absorbed by Shields . | . . . . . . . . . . Core Remaining (%) 60 | 100 . 83 48 12 . . . . . Volleys Fired 4 | . . . 4 . . . . . . Largest 1 | . . . 1 . . . . . . Hottest 100 | . . . 100 . . . . . . Shots Fired 4 | . . . 4 . . . . . . Gun . | . . . . . . . . . . Cannon . | . . . . . . . . . . Launcher . | . . . . . . . . . . Special 4 | . . . 4 . . . . . . Kinetic . | . . . . . . . . . . Thermal 4 | . . . 4 . . . . . . Explosive . | . . . . . . . . . . Electromagnetic . | . . . . . . . . . . Robot Hit Streak . | . . . . . . . . . . Robot Miss Streak . | . . . . . . . . . . Penetration Max . | . . . . . . . . . . Secondary Targets . | . . . . . . . . . . Shots Hit Robots . | . . . . . . . . . . Core Hits 1 | . . . . 1 . . . . . Critical Kills . | . . . . . . . . . . Critical Parts Destroyed . | . . . . . . . . . . Critical Strikes . | . . . . . . . . . . Melee Attacks . | . . . . . . . . . . Impact . | . . . . . . . . . . Slashing . | . . . . . . . . . . Piercing . | . . . . . . . . . . Sneak Attacks . | . . . . . . . . . . Combat Hostiles . | . . . . . . . . . . Follow-up Attacks . | . . . . . . . . . . Damage Inflicted 16 | . . . . 16 . . . . . Guns . | . . . . . . . . . . Cannons . | . . . . . . . . . . Explosions . | . . . . . . . . . . Melee . | . . . . . . . . . . Ramming 16 | . . . . 16 . . . . . Kinetic . | . . . . . . . . . . Thermal . | . . . . . . . . . . Explosive . | . . . . . . . . . . Electromagnetic . | . . . . . . . . . . Impact . | . . . . . . . . . . Slashing . | . . . . . . . . . . Piercing . | . . . . . . . . . . Highest Corruption . | . . . . . . . . . . Average Corruption . | . . . . . . . . . . Corruption Purged . | . . . . . . . . . . Corruption Blocked . | . . . . . . . . . . Overload Shots . | . . . . . . . . . . Overflow Damage . | . . . . . . . . . . Projectiles . | . . . . . . . . . . Explosions . | . . . . . . . . . . Melee . | . . . . . . . . . . Knockbacks . | . . . . . . . . . . Impact . | . . . . . . . . . . Kinetic . | . . . . . . . . . . Secondary . | . . . . . . . . . . Self-Inflicted Damage 7 | . . . . 7 . . . . . Shots . | . . . . . . . . . . Rammed 3 | . . . . 3 . . . . . Targets Rammed 3 | . . . . 3 . . . . . Kicked . | . . . . . . . . . . Crushed . | . . . . . . . . . . Highest Temperature . | . . . . . . . . . . Average Temperature . | . . . . . . . . . . Received Heat Transfer 288 | . 24 . 114 18 36 12 84 . . Siege Activations . | . . . . . . . . . . Martial Activations . | . . . . . . . . . . Shielding Activations . | . . . . . . . . . . Robots Disrupted . | . . . . . . . . . . Combat Hostiles . | . . . . . . . . . . Robots Corrupted . | . . . . . . . . . . Combat Hostiles . | . . . . . . . . . . Parts Fried . | . . . . . . . . . . Impact Corruptions . | . . . . . . . . . . Robots Melted . | . . . . . . . . . . Combat Hostiles . | . . . . . . . . . . Parts Melted . | . . . . . . . . . . Heat Transferred . | . . . . . . . . . . Parts Sabotaged . | . . . . . . . . . . Parts Stolen . | . . . . . . . . . . Parts Stripped . | . . . . . . . . . . Power Chain Reactions . | . . . . . . . . . . Alert | -11 -10 -10 -9 -8 -7 -7 -7 -7 -6 ------- Run | Yrd Mat Min Mat Mat Fac Low Low Dat Pro Maximum Alert Level . | . . . . . . . . . . Low Security (%) 100 | 100 100 100 100 100 100 . . . . Level 1 . | . . . . . . . . . . Level 2 . | . . . . . . . . . . Level 3 . | . . . . . . . . . . Level 4 . | . . . . . . . . . . Level 5 . | . . . . . . . . . . High Security . | . . . . . . . . . . Max Security . | . . . . . . . . . . Peak Influence 45 | . 15 . 30 45 15 . . . . Initial 15 | . . . . 8 15 . . . . Average 5 | . 1 . 2 18 2 . . . . Influence Increases 372 | . 15 . 32 90 . 60 150 . 25 Destroy 0b10 Robot/C 20 | . . . . . . . . . 20 Allied During Kill 5 | . . . . . . . . . 5 Destroy Structure 2 | . . . 2 . . . . . . Partial Spotted 15 | . 15 . . . . . . . . Lose Combat Pursuer 330 | . . . 30 90 . 60 150 . . Influence Decreases 372 | . 15 . 12 75 35 60 150 . 25 Entered New Map 32 | . . . . 12 20 . . . . Time Decay 310 | . 15 . 12 53 15 60 150 . 5 Lost Part 10 | . . . . 10 . . . . . Lost Ally 20 | . . . . . . . . . 20 Squads Dispatched 5 | . . . 2 1 2 . . . . Investigation . | . . . . . . . . . . Extermination 1 | . . . . . 1 . . . . Reinforcement 4 | . . . 2 1 1 . . . . Assault . | . . . . . . . . . . Garrison . | . . . . . . . . . . Intercept . | . . . . . . . . . . Searches Triggered . | . . . . . . . . . . Construction Impeded . | . . . . . . . . . . Haulers Reinforced . | . . . . . . . . . . Active Scanning Responses . | . . . . . . . . . . Cargo Convoy Interrupts . | . . . . . . . . . . Stealth | -11 -10 -10 -9 -8 -7 -7 -7 -7 -6 --------- Run | Yrd Mat Min Mat Mat Fac Low Low Dat Pro Distress Signals 3 | . . . 1 2 . . . . . Communications Jammed . | . . . . . . . . . . Distress Signals . | . . . . . . . . . . Times Spotted 49 | . 2 . 10 15 2 5 12 . 3 Peak Tracking Total 13 | . 2 . 9 13 2 4 10 . 2 Tactical Retreats 10 | . . . 2 3 . 2 3 . . Traps | -11 -10 -10 -9 -8 -7 -7 -7 -7 -6 ------- Run | Yrd Mat Min Mat Mat Fac Low Low Dat Pro Traps Triggered . | . . . . . . . . . . Indirectly . | . . . . . . . . . . Trap Hack Attempts . | . . . . . . . . . . Triggered . | . . . . . . . . . . Disarmed . | . . . . . . . . . . Reprogrammed . | . . . . . . . . . . Reused . | . . . . . . . . . . Traps Extracted . | . . . . . . . . . . Installed . | . . . . . . . . . . Triggered . | . . . . . . . . . . Machines | -11 -10 -10 -9 -8 -7 -7 -7 -7 -6 ---------- Run | Yrd Mat Min Mat Mat Fac Low Low Dat Pro Machines Disabled . | . . . . . . . . . . Max in Single Turn . | . . . . . . . . . . Machines Repaired . | . . . . . . . . . . Machines Dismantled . | . . . . . . . . . . Machines Sabotaged . | . . . . . . . . . . Overloaded Fab Kills . | . . . . . . . . . . Hacking | -11 -10 -10 -9 -8 -7 -7 -7 -7 -6 --------- Run | Yrd Mat Min Mat Mat Fac Low Low Dat Pro Machines Accessed 5 | . . . . . . 1 . 4 . Terminals . | . . . . . . . . . . Fabricators . | . . . . . . . . . . Repair Stations . | . . . . . . . . . . Recycling Units . | . . . . . . . . . . Scanalyzers . | . . . . . . . . . . Garrison Access . | . . . . . . . . . . Total Hacks 33 | . . . . . . 1 . 32 . Successful 33 | . . . . . . 1 . 32 . Failed . | . . . . . . . . . . Catastrophic . | . . . . . . . . . . Database Lockouts . | . . . . . . . . . . Manual . | . . . . . . . . . . Terminals . | . . . . . . . . . . Fabricators . | . . . . . . . . . . Repair Stations . | . . . . . . . . . . Recycling Units . | . . . . . . . . . . Scanalyzers . | . . . . . . . . . . Garrison Access . | . . . . . . . . . . Terminal Hacks 33 | . . . . . . 1 . 32 . Record 11 | . . . . . . . . 11 . Part Schematic 12 | . . . . . . . . 12 . Robot Schematic 6 | . . . . . . . . 6 . Prototype ID Bank 3 | . . . . . . . . 3 . Open Door 1 | . . . . . . 1 . . . Fabricator Hacks . | . . . . . . . . . . Repair Station Hacks . | . . . . . . . . . . Recycling Unit Hacks . | . . . . . . . . . . Scanalyzer . | . . . . . . . . . . Garrison Access Hacks . | . . . . . . . . . . Unauthorized Hacks . | . . . . . . . . . . Terminals . | . . . . . . . . . . Fabricators . | . . . . . . . . . . Repair Stations . | . . . . . . . . . . Recycling Units . | . . . . . . . . . . Scanalyzers . | . . . . . . . . . . Garrison Access . | . . . . . . . . . . Data Cores Recovered . | . . . . . . . . . . Used . | . . . . . . . . . . Hacking Detections . | . . . . . . . . . . Full Trace Events . | . . . . . . . . . . Feedback Events . | . . . . . . . . . . Feedback Blocked . | . . . . . . . . . . Robot Schematics Acquired 6 | . . . . . . . . 6 . Robots Built . | . . . . . . . . . . Authchips . | . . . . . . . . . . Time . | . . . . . . . . . . Total Robot Build Rating . | . . . . . . . . . . Part Schematics Acquired 12 | . . . . . . . . 12 . Parts Built . | . . . . . . . . . . Authchips . | . . . . . . . . . . Time . | . . . . . . . . . . Total Part Build Rating . | . . . . . . . . . . Parts Repaired . | . . . . . . . . . . Time . | . . . . . . . . . . Parts Recycled . | . . . . . . . . . . Recycled Matter . | . . . . . . . . . . Retrieved Matter . | . . . . . . . . . . Retrieved Components . | . . . . . . . . . . Parts Scanalyzed . | . . . . . . . . . . Part Schematics Acquired . | . . . . . . . . . . Parts Damaged . | . . . . . . . . . . Bothacking | -11 -10 -10 -9 -8 -7 -7 -7 -7 -6 ------------ Run | Yrd Mat Min Mat Mat Fac Low Low Dat Pro Used RIF Installer . | . . . . . . . . . . Robots Hacked . | . . . . . . . . . . Non-combat . | . . . . . . . . . . Combat . | . . . . . . . . . . Robot Hacks Applied . | . . . . . . . . . . Relay Couplers Released . | . . . . . . . . . . Fabnet Peak Effective % . | . . . . . . . . . . Robots Rewired . | . . . . . . . . . . Allies Hacked . | . . . . . . . . . . Hacks Repelled . | . . . . . . . . . . Allies | -11 -10 -10 -9 -8 -7 -7 -7 -7 -6 -------- Run | Yrd Mat Min Mat Mat Fac Low Low Dat Pro Total Allies 1 | . . . . . . . . . 1 Largest Group 1 | . . . . . . . . . 1 Highest-Rated Group 96 | . . . . . . . . . 96 Highest-Rated Ally 96 | . . . . . . . . . 96 Total Orders . | . . . . . . . . . . Ally Attacks 4 | . . . . . . . . . 4 Total Damage 143 | . . . . . . . . . 143 Kills 1 | . . . . . . . . . 1 Allies Corrupted . | . . . . . . . . . . Allies Melted 2 | . . . . . . . 2 . . Intel | -11 -10 -10 -9 -8 -7 -7 -7 -7 -6 ------- Run | Yrd Mat Min Mat Mat Fac Low Low Dat Pro Active Infowar (turns) 108 | . . . . 74 . . 6 . 28 Machine Analysis 74 | . . . . 74 . . . . . Jamming 34 | . . . . . . . 6 . 28 Robot Analysis Total . | . . . . . . . . . . Derelict Logs Recovered 3 | . . . . . . 2 1 . . Drone Launches . | . . . . . . . . . . Drone Recoveries . | . . . . . . . . . . Exploration | -11 -10 -10 -9 -8 -7 -7 -7 -7 -6 ------------- Run | Yrd Mat Min Mat Mat Fac Low Low Dat Pro Turns Passed 1551 | 11 105 27 201 128 136 385 336 51 171 Spaces Moved 2755 | 21 143 34 303 235 267 742 588 102 320 Core 2754 | 21 143 34 302 235 267 742 588 102 320 Treads . | . . . . . . . . . . Legs . | . . . . . . . . . . Wheels . | . . . . . . . . . . Hover 1 | . . . 1 . . . . . . Flight . | . . . . . . . . . . Fastest Speed 50 | 50 50 50 50 50 50 50 50 50 50 Average Speed 50 | 50 50 50 50 50 50 50 50 50 50 Slowest Speed 50 | 50 50 50 50 50 50 50 50 50 50 Overloaded Moves . | . . . . . . . . . . Propulsion Burnouts . | . . . . . . . . . . Robots Hopped . | . . . . . . . . . . Potential Cave-ins . | . . . . . . . . . . Cave-ins Triggered . | . . . . . . . . . . Exploration Rate (%) 37 | 3 28 12 31 27 8 78 78 74 35 Regions Visited 9 Branch Regions 5 Pre-discovered Areas 2 | . . . . . . 1 . 1 . Known Exits Taken . | . . . . . . . . . . Unknown Exits Taken 9 | 1 1 1 1 1 1 1 1 1 . Scrap Searched 5 | . . 1 . . . 2 2 . . Spaces Dug 3 | . . . 3 . . . . . . Terrain Destroyed 3 | . . . 3 . . . . . . Melee . | . . . . . . . . . . Projectile 3 | . . . 3 . . . . . . AOE . | . . . . . . . . . . Terrain Rammed . | . . . . . . . . . . Walls Destroyed . | . . . . . . . . . . Machines Disabled . | . . . . . . . . . . Actions | -11 -10 -10 -9 -8 -7 -7 -7 -7 -6 --------- Run | Yrd Mat Min Mat Mat Fac Low Low Dat Pro Total 2903 | 20 175 43 339 244 268 754 628 101 331 Wait 137 | . 32 10 29 6 . 12 37 . 11 Move 2746 | 20 142 33 302 234 266 741 587 101 320 Hop . | . . . . . . . . . . Pick Up . | . . . . . . . . . . Fast Attach 8 | . 1 . 2 1 1 1 2 . . Attach . | . . . . . . . . . . Detach 1 | . . . . . 1 . . . . Swap . | . . . . . . . . . . Drop 3 | . . . 2 . . . 1 . . Fire 4 | . . . 4 . . . . . . Melee . | . . . . . . . . . . Ram 3 | . . . . 3 . . . . . Kick . | . . . . . . . . . . Crush . | . . . . . . . . . . Escape Stasis . | . . . . . . . . . . Rewire . | . . . . . . . . . . Trap . | . . . . . . . . . . Miscellaneous 1 | . . . . . . . 1 . . Route ------- -11/Scrapyard -10/Materials -10/Mines -9/Materials -8/Materials -7/Factory -7/Lower Caves -7/Lower Caves (discovered 2 exits: Fac / *Dat) -7/Data Miner -6/Proximity Caves History --------- Turn | Location | Event 3 | -11/Scrapyard | Discovered new exit (range 16) 12 | -11/Scrapyard | Entered Materials 103 | -10/Materials | Discovered new exit (range 15) 117 | -10/Materials | Entered Mines 126 | -10/Mines | Discovered new exit (range 9) 144 | -10/Mines | Entered Materials 144 | -9/Materials | Evolved 2 slots: Utility x2 315 | -9/Materials | Build established: Mutant 340 | -9/Materials | Core integrity fell below 50% 342 | -9/Materials | Discovered new exit (range 4) 345 | -9/Materials | Entered another Materials area 345 | -8/Materials | Evolved 2 slots: Propulsion x2 447 | -8/Materials | Core integrity fell below 50% 466 | -8/Materials | Core integrity fell below 20% 470 | -8/Materials | Discovered new exit (range 5) 473 | -8/Materials | Entered Factory 473 | -7/Factory | Evolved 2 slots: Propulsion x1, Utility x1 604 | -7/Factory | Discovered new exit (range 9) 609 | -7/Factory | Entered Lower Caves 790 | -7/Lower Caves | Encountered a Warlord checkpoint 809 | -7/Lower Caves | Spotted B-75 Beast 889 | -7/Lower Caves | Discovered new exit (range 12) 890 | -7/Lower Caves | Learned location of Zion (-6) 900 | -7/Lower Caves | Learned Factory trap positions 994 | -7/Lower Caves | Entered another Lower Caves area 1021 | -7/Lower Caves | Core integrity fell below 50% 1048 | -7/Lower Caves | Spotted B-75 Beast 1065 | -7/Lower Caves | Identified exit to Factory 1089 | -7/Lower Caves | Activated DRS Beacon 1316 | -7/Lower Caves | Discovered new exit (range 6) 1330 | -7/Lower Caves | Entered Data Miner 1330 | -7/Data Miner | Discovered new exit (range 6) 1340 | -7/Data Miner | Met Data Miner 1358 | -7/Data Miner | Learned location of Section 7 (-3) 1358 | -7/Data Miner | Acquired the access code to Warlord's prototype stash 1368 | -7/Data Miner | Received God Mode back door access code from Data Miner 1381 | -7/Data Miner | Entered Proximity Caves 1426 | -6/Proximity Caves | Escorted by Enhanced Grunt 1492 | -6/Proximity Caves | Core integrity fell below 20% 1552 | -6/Proximity Caves | Destroyed by H-66 Slayer with Gauss Rifle Last Messages --------------- wits to spot intentionally damaged robots sometimes lying in wait among the junk for a chance to ambush looters. 01362_ Connecting with ORACLE Interface... Data Miner: I've just received further instructions. God Mode is nearly complete and we think you might be able to put it to better use than Warlord, so if you see an opportunity, hack it and enter \\7HKA to gain control via the back door I've installed. Now off with you. LOCATION=UNKNOWN GOAL=ESCAPE 01424_ Slug penetrates Wall. 01426_ Enhanced Grunt: "Protecting LRC-V3." 01431_ Slug penetrates Enhanced Grunt. 01437_ Enhanced Grunt suffers critical hit (Destroy). 01437_ Enhanced Grunt destroyed. 01461_ Penetrated by Slug. 01461_ Slug penetrates Wall. 01494_ Transmission Jammer destroyed. 01500_ Slug penetrates Wall. 01538_ Penetrated by Slug. Map ----- +----------------------------------------------------+ | ?????????????????????????????????????????????????? | | ?????????????????????????????????????????????????? | | ?????????????????????????????????????????????????? | | ?????????????????????????????????????????????????? | | ?????????????????????????????????????????????????? | | ?????????????????????????????????????????????????? | | ?????????????????????????????????????????????????? | | ?????????????????????????????????????????????????? | | ?????????????????????????????????????????????????? | | ?????????????????????????????????????????????????? | | ??????????????????????###????????????????????????? | | ?????????????????????## ##???????????????????????? | | ??????????????######## #???????????????????????? | | #????????????## ## ##??????????????????????? | | #????????????# ### ##?????????????????????? | | #????????????# #?# ##????????????????????? | | #?????????#### ### #????????????????????? | | ##??????### ## ### #????????????????????? | | ##????## ##?# ##????????????????????? | | #????# ##??### #?????????????????????? | | ###### #???### ###???????????????????? | | ## #???# ##??????????????????? | | ##???## #??????????????????? | | #####??## ##??????????????????? | | ### ##??# ###???????????????????? | | ##### #?? #### @##?????????????????????? | | #???## #??# ### #??????????????????????? | | ##????# ##?# ### ##?????????????????????? | | ##?????## #?# #?## ##????????????????????? | | #???????# ### #?## #????????????????????? | | ????????## #?# ##???????????????????? | | ?????????# #?# h #???????????????????? | | ???????### % ### ##???????????????????? | | #?????## ### #????????????????????? | | #????## ### ##???????????????????? | | #???## ## ## #???????????????????? | | #???# #### ## #???????????????????? | | #???# #??## ##### ##??????????????????? | | #???# # ##???" ##??# ### #####??????????????? | | #???# ###???## #??# #?### #??????????????? | | ##?## #?????# ! ##??# ##???## ####???????????? | | ### #####?#!%##???###?????### #???????????? | | ## # ###*!#??????????????# #??????????? | | ## # #????????????? #??????????? | | # # #??????????? ##??????????? | | # # # ##?????????? ### #???????????? | | ## # ####??????????## #?? #???????????? | | ?####### ###??????????????# #???#???????????? | | ???????#####???????????????? ???????????????? | | ??????????????????????????? ???????????????? | +----------------------------------------------------+ Best States ------------- Heat Dissipation 34 Energy Generation 5 Energy Capacity 100 Matter Stores 300 Matter Capacity 300 Sight Range 16 Terrain Scan Density 135 Jamming Range 12 Evasion (%) 50 Item Schematics ----------------- Combat Drone Bay | -7/Data Miner | Free Lgt. Regenerative Plating | -7/Data Miner | Free Biomechanical Wings | -7/Data Miner | Free Gravity Neutralizer | -7/Data Miner | Free Linear Gravjet | -7/Data Miner | Free Imp. Heavy Laser | -7/Data Miner | Free Imp. Thermal Shield | -7/Data Miner | Free Wave Gun | -7/Data Miner | Free Matter Compressor | -7/Data Miner | Free Adv. Hacking Suite | -7/Data Miner | Free Adv. Cooling System | -7/Data Miner | Free Matter Neutralizer | -7/Data Miner | Free Robot Schematics ------------------ Y-54 Guardian | -7/Data Miner | Free S-27 Virus | -7/Data Miner | Free H-55 Commando | -7/Data Miner | Free R-10 Processor | -7/Data Miner | Free B-48 Gladiator | -7/Data Miner | Free G-50 Soldier | -7/Data Miner | Free Fabricated ------------ Nothing Repaired ---------- Nothing Alien Tech Used ----------------- None Achievements -------------- None Challenges ------------ None Game ------ Seed DynamicCompanionUnit Manual? 0 Play Time 00:17:22 Cumulative 19.9 hours Start 2025.05.25 @ 22:14:15 End 2025.05.25 @ 22:30:09 Sessions 1 Manual Loads 0 Difficulty Rogue Special Mode None Game No. 39 Rogue 39 Adventurer 0 Explorer 0 Win Type - Total 0 Types 0/0/0/0/0/0/0/0/0/0 Lore% 18 Gallery% 28 Achievement% 25 Wizard Run 0 Options --------- Layout 0 ASCII 0 Keyboard 0 Movement Mouse Keybinds 0 Fullscreen 1 Font 18/SmallcapsGlow Map View 76x50 Zoom Use 43% Tactical HUD 1 Map Filters NONE Filters NONE Steam 1 RUN: c1e93bce-7207-4fad-8ae0-439e744ad7bd